[Event "Late-Titled-Tuesday-Blitz-March-19-2024"]
[Site "Chess.com"]
[Date "2024.03.19"]
[Round "6"]
[White "BilicVladimir"]
[Black "Narek_Ghimoyan"]
[Result "1-0"]
[WhiteElo "2674"]
[BlackElo "2452"]
[TimeControl "180+1"]
[EndTime "15:05:12 PDT"]
[Termination "BilicVladimir won by resignation"]

1. e4 {[%clk 0:03:00.9]} 1... c5 {[%clk 0:02:50.7]} 2. Nf3 {[%clk 0:03:00.3]}
2... d6 {[%clk 0:02:51]} 3. Bb5+ {[%clk 0:02:59.5]} 3... Bd7 {[%clk 0:02:48.7]}
4. Bxd7+ {[%clk 0:02:58.7]} 4... Qxd7 {[%clk 0:02:42]} 5. c4 {[%clk 0:02:59.6]}
5... Nc6 {[%clk 0:02:40.5]} 6. O-O {[%clk 0:02:59.3]} 6... Nf6 {[%clk
0:02:40.6]} 7. Nc3 {[%clk 0:02:58.8]} 7... e6 {[%clk 0:02:40]} 8. d4 {[%clk
0:02:59.1]} 8... cxd4 {[%clk 0:02:39.8]} 9. Nxd4 {[%clk 0:02:59.6]} 9... Be7
{[%clk 0:02:40.6]} 10. b3 {[%clk 0:02:59.1]} 10... O-O {[%clk 0:02:41]} 11. Bb2
{[%clk 0:02:59.3]} 11... Rac8 {[%clk 0:02:39.5]} 12. Rc1 {[%clk 0:02:58.2]}
12... a6 {[%clk 0:02:40.1]} 13. Nxc6 {[%clk 0:02:55.6]} 13... Qxc6 {[%clk
0:02:38.8]} 14. Qe2 {[%clk 0:02:53.3]} 14... Nd7 {[%clk 0:02:36.1]} 15. Rfd1
{[%clk 0:02:51]} 15... Rfd8 {[%clk 0:02:35.4]} 16. Nd5 {[%clk 0:02:39.7]} 16...
Bf8 {[%clk 0:02:35.2]} 17. Nf4 {[%clk 0:02:28.4]} 17... Ne5 {[%clk 0:02:30.2]}
18. Nd3 {[%clk 0:02:26.2]} 18... Nxd3 {[%clk 0:02:27.8]} 19. Qxd3 {[%clk
0:02:25.1]} 19... b5 {[%clk 0:02:23.3]} 20. cxb5 {[%clk 0:02:22.9]} 20... Qxb5
{[%clk 0:02:24.2]} 21. Qxb5 {[%clk 0:02:22.2]} 21... axb5 {[%clk 0:02:25.1]} 22.
Kf1 {[%clk 0:02:20.3]} 22... f6 {[%clk 0:02:20.8]} 23. Ke2 {[%clk 0:02:19]}
23... Kf7 {[%clk 0:02:20.7]} 24. a3 {[%clk 0:02:17.1]} 24... e5 {[%clk 0:02:18]}
25. Kd3 {[%clk 0:02:08.5]} 25... Ke6 {[%clk 0:02:17.4]} 26. Rxc8 {[%clk
0:02:06.6]} 26... Rxc8 {[%clk 0:02:17.2]} 27. Rc1 {[%clk 0:02:05.2]} 27... Rxc1
{[%clk 0:02:08.6]} 28. Bxc1 {[%clk 0:02:04.3]} 28... d5 {[%clk 0:02:09.5]} 29.
exd5+ {[%clk 0:02:01.2]} 29... Kxd5 {[%clk 0:02:10.4]} 30. a4 {[%clk 0:01:57.6]}
30... bxa4 {[%clk 0:02:10.2]} 31. bxa4 {[%clk 0:01:57.2]} 31... Bb4 {[%clk
0:02:09.1]} 32. f3 {[%clk 0:01:51.4]} 32... f5 {[%clk 0:02:08]} 33. Bb2 {[%clk
0:01:41.5]} 33... g6 {[%clk 0:02:06.3]} 34. Bc3 {[%clk 0:01:33.3]} 34... Bc5
{[%clk 0:01:41.1]} 35. a5 {[%clk 0:01:31]} 35... e4+ {[%clk 0:01:41.2]} 36.
fxe4+ {[%clk 0:01:30.5]} 36... fxe4+ {[%clk 0:01:42.1]} 37. Ke2 {[%clk
0:01:30.5]} 37... Kc4 {[%clk 0:01:43]} 38. Bd2 {[%clk 0:01:28.7]} 38... Kb5
{[%clk 0:01:42.7]} 39. g4 {[%clk 0:01:24]} 39... Bd4 {[%clk 0:01:40.7]} 40. h3
{[%clk 0:01:23.5]} 40... Bc5 {[%clk 0:01:40.4]} 41. Bc3 {[%clk 0:01:14.9]} 41...
Bg1 {[%clk 0:01:36.3]} 42. Bd2 {[%clk 0:01:08.1]} 42... Bc5 {[%clk 0:01:35.3]}
43. Be3 {[%clk 0:01:04.5]} 43... Bb4 {[%clk 0:01:32.2]} 44. Bb6 {[%clk
0:01:01.9]} 44... Bxa5 {[%clk 0:00:58.3]} 45. Bxa5 {[%clk 0:01:00.8]} 45... Kxa5
{[%clk 0:00:59.2]} 46. Ke3 {[%clk 0:01:00.8]} 46... Kb5 {[%clk 0:00:54.8]} 47.
Kxe4 {[%clk 0:01:01.3]} 47... Kc6 {[%clk 0:00:53.8]} 48. Ke5 {[%clk 0:01:01.3]}
48... h5 {[%clk 0:00:30.5]} 49. g5 {[%clk 0:01:00.2]} 49... h4 {[%clk
0:00:28.6]} 50. Kf6 {[%clk 0:01:00]} 50... Kd5 {[%clk 0:00:28.8]} 51. Kxg6
{[%clk 0:01:00.2]} 51... Ke4 {[%clk 0:00:29.7]} 52. Kf6 {[%clk 0:00:59]} 52...
Kf4 {[%clk 0:00:28.7]} 53. g6 {[%clk 0:00:59.2]} 53... Kg3 {[%clk 0:00:29.3]}
54. g7 {[%clk 0:00:59.4]} 54... Kxh3 {[%clk 0:00:29]} 55. g8=Q {[%clk
0:00:59.4]} 55... Kh2 {[%clk 0:00:29.9]} 56. Kf5 {[%clk 0:00:59.1]} 56... h3
{[%clk 0:00:29.7]} 57. Kf4 {[%clk 0:00:58.8]} 57... Kh1 {[%clk 0:00:29.8]} 58.
Kf3 {[%clk 0:00:58.5]} 58... Kh2 {[%clk 0:00:29.8]} 59. Qg3+ {[%clk 0:00:57.4]}
59... Kh1 {[%clk 0:00:29.5]} 60. Qxh3+ {[%clk 0:00:57.3]} 60... Kg1 {[%clk
0:00:30.4]} 1-0

[Event "Late-Titled-Tuesday-Blitz-March-19-2024"]
[Site "Chess.com"]
[Date "2024.03.19"]
[Round "6"]
[White "simaopdias"]
[Black "MathiasWomacka"]
[Result "0-1"]
[WhiteElo "2272"]
[BlackElo "2490"]
[TimeControl "180+1"]
[EndTime "15:05:18 PDT"]
[Termination "MathiasWomacka won by resignation"]

1. e4 {[%clk 0:03:00.3]} 1... c5 {[%clk 0:03:00]} 2. Nf3 {[%clk 0:03:00.9]} 2...
d6 {[%clk 0:03:00.3]} 3. d4 {[%clk 0:03:01.8]} 3... cxd4 {[%clk 0:03:00.1]} 4.
Nxd4 {[%clk 0:03:02.7]} 4... Nf6 {[%clk 0:02:59.2]} 5. Nc3 {[%clk 0:03:02.9]}
5... a6 {[%clk 0:02:59.6]} 6. Bg5 {[%clk 0:03:01.5]} 6... e6 {[%clk 0:02:59.6]}
7. f4 {[%clk 0:03:02.2]} 7... h6 {[%clk 0:02:57.9]} 8. Bxf6 {[%clk 0:03:01.9]}
8... Qxf6 {[%clk 0:02:58.4]} 9. Qd2 {[%clk 0:03:02.5]} 9... Nc6 {[%clk
0:02:56.5]} 10. Nf3 {[%clk 0:03:00.5]} 10... g5 {[%clk 0:02:56.1]} 11. fxg5
{[%clk 0:02:52.4]} 11... hxg5 {[%clk 0:02:57]} 12. Qxg5 {[%clk 0:02:48]} 12...
Qxg5 {[%clk 0:02:57]} 13. Nxg5 {[%clk 0:02:48]} 13... b5 {[%clk 0:02:46.5]} 14.
Bd3 {[%clk 0:02:47.6]} 14... Rg8 {[%clk 0:02:38.6]} 15. h4 {[%clk 0:02:40.6]}
15... f6 {[%clk 0:02:27.3]} 16. Nf3 {[%clk 0:02:39.2]} 16... Rxg2 {[%clk
0:02:26.3]} 17. O-O-O {[%clk 0:02:36.9]} 17... Bh6+ {[%clk 0:02:18.1]} 18. Kb1
{[%clk 0:02:36.8]} 18... Bb7 {[%clk 0:02:13.3]} 19. Rdg1 {[%clk 0:02:34.8]}
19... Rxg1+ {[%clk 0:02:12.4]} 20. Rxg1 {[%clk 0:02:34.8]} 20... Kf7 {[%clk
0:02:12.9]} 21. a3 {[%clk 0:02:28.4]} 21... Rh8 {[%clk 0:02:04.4]} 22. Ne2
{[%clk 0:02:24.2]} 22... Be3 {[%clk 0:01:58.7]} 23. Rg3 {[%clk 0:02:16.6]} 23...
Ne7 {[%clk 0:01:46.5]} 24. Rh3 {[%clk 0:01:54.4]} 24... Bh6 {[%clk 0:01:40.2]}
25. Ned4 {[%clk 0:01:51.8]} 25... Ng6 {[%clk 0:01:30]} 26. Ne2 {[%clk
0:01:51.2]} 26... Nf4 {[%clk 0:01:20.7]} 27. Nxf4 {[%clk 0:01:50.8]} 27... Bxf4
{[%clk 0:01:21.2]} 28. c3 {[%clk 0:01:49.3]} 28... d5 {[%clk 0:01:17.9]} 29.
exd5 {[%clk 0:01:42.8]} 29... Bxd5 {[%clk 0:01:18.8]} 30. h5 {[%clk 0:01:33.7]}
30... f5 {[%clk 0:01:18.6]} 31. Kc2 {[%clk 0:01:25.4]} 31... Kf6 {[%clk
0:01:18]} 32. Be2 {[%clk 0:01:20.7]} 32... e5 {[%clk 0:01:15.8]} 33. Nd2 {[%clk
0:01:15]} 33... e4 {[%clk 0:01:15.5]} 34. Nb3 {[%clk 0:01:14.7]} 34... Be5
{[%clk 0:01:13.2]} 35. Nc5 {[%clk 0:01:12.8]} 35... Bc6 {[%clk 0:01:12.2]} 36.
a4 {[%clk 0:01:08.4]} 36... bxa4 {[%clk 0:01:11.1]} 37. Nxa6 {[%clk 0:01:07.9]}
37... f4 {[%clk 0:01:11]} 38. Nb4 {[%clk 0:01:07.4]} 38... Bb7 {[%clk
0:01:08.9]} 39. Bb5 {[%clk 0:01:03.7]} 39... f3 {[%clk 0:01:06.2]} 40. Nc6
{[%clk 0:00:58.2]} 40... Bf4 {[%clk 0:00:52.7]} 41. Kd1 {[%clk 0:00:55.6]} 41...
Bc8 {[%clk 0:00:49.9]} 42. Rh1 {[%clk 0:00:52]} 42... Bg4 {[%clk 0:00:46.2]} 43.
Nd4 {[%clk 0:00:44.6]} 43... e3 {[%clk 0:00:44.6]} 44. Ke1 {[%clk 0:00:29.9]}
44... Bg3+ {[%clk 0:00:43.2]} 45. Kf1 {[%clk 0:00:29.9]} 45... Rxh5 {[%clk
0:00:38.7]} 46. Rxh5 {[%clk 0:00:28.3]} 46... Bxh5 {[%clk 0:00:39.6]} 47. c4
{[%clk 0:00:23]} 47... e2+ {[%clk 0:00:38.7]} 0-1

[Event "Late-Titled-Tuesday-Blitz-March-19-2024"]
[Site "Chess.com"]
[Date "2024.03.19"]
[Round "6"]
[White "Bastiandash"]
[Black "BardArtem"]
[Result "0-1"]
[WhiteElo "2601"]
[BlackElo "2748"]
[TimeControl "180+1"]
[EndTime "15:05:20 PDT"]
[Termination "BardArtem won by resignation"]

1. e4 {[%clk 0:03:00.9]} 1... d5 {[%clk 0:02:58.3]} 2. exd5 {[%clk 0:02:58.7]}
2... Qxd5 {[%clk 0:02:59.2]} 3. Nc3 {[%clk 0:02:58.8]} 3... Qe5+ {[%clk
0:02:59.6]} 4. Be2 {[%clk 0:02:55.7]} 4... Bg4 {[%clk 0:02:59.7]} 5. d4 {[%clk
0:02:55.5]} 5... Bxe2 {[%clk 0:03:00.1]} 6. Ngxe2 {[%clk 0:02:54.6]} 6... Qa5
{[%clk 0:03:00.3]} 7. O-O {[%clk 0:02:54.3]} 7... Nf6 {[%clk 0:03:00.4]} 8. Nf4
{[%clk 0:02:46.3]} 8... c6 {[%clk 0:02:54.9]} 9. Qe2 {[%clk 0:02:46]} 9... e6
{[%clk 0:02:51.4]} 10. Re1 {[%clk 0:02:42.7]} 10... Be7 {[%clk 0:02:49]} 11. Bd2
{[%clk 0:02:28.2]} 11... Qd8 {[%clk 0:02:48.1]} 12. Rad1 {[%clk 0:02:24.7]}
12... O-O {[%clk 0:02:45.4]} 13. Be3 {[%clk 0:02:18.3]} 13... Nbd7 {[%clk
0:02:39.2]} 14. h4 {[%clk 0:02:09.5]} 14... Nd5 {[%clk 0:02:28.6]} 15. Ncxd5
{[%clk 0:02:06]} 15... cxd5 {[%clk 0:02:24.8]} 16. g3 {[%clk 0:02:01.7]} 16...
Nf6 {[%clk 0:02:23.7]} 17. Nh5 {[%clk 0:01:56]} 17... Rc8 {[%clk 0:02:12.7]} 18.
c3 {[%clk 0:01:55.2]} 18... Qa5 {[%clk 0:02:02.3]} 19. a3 {[%clk 0:01:38]} 19...
Qb6 {[%clk 0:02:01.9]} 20. Bg5 {[%clk 0:01:33.9]} 20... Qd8 {[%clk 0:01:45.2]}
21. Bxf6 {[%clk 0:01:33]} 21... Bxf6 {[%clk 0:01:46.1]} 22. Rd3 {[%clk
0:01:27.1]} 22... g6 {[%clk 0:01:35]} 23. Nxf6+ {[%clk 0:01:24.2]} 23... Qxf6
{[%clk 0:01:35.9]} 24. Rf3 {[%clk 0:01:24.9]} 24... Qe7 {[%clk 0:01:34.5]} 25.
h5 {[%clk 0:01:24.2]} 25... Rce8 {[%clk 0:01:21.5]} 26. Qe3 {[%clk 0:01:18.5]}
26... f6 {[%clk 0:01:17.2]} 27. hxg6 {[%clk 0:01:15.4]} 27... hxg6 {[%clk
0:01:17]} 28. Kg2 {[%clk 0:01:14.6]} 28... Kg7 {[%clk 0:01:14]} 29. Rh1 {[%clk
0:01:08.1]} 29... Rh8 {[%clk 0:01:13.8]} 30. Rxh8 {[%clk 0:01:06.4]} 30... Rxh8
{[%clk 0:01:14.7]} 31. Qe2 {[%clk 0:01:05.2]} 31... Qd7 {[%clk 0:01:03.1]} 32.
Re3 {[%clk 0:01:03.3]} 32... e5 {[%clk 0:00:59.7]} 33. g4 {[%clk 0:00:54.8]}
33... e4 {[%clk 0:00:59.5]} 34. Rg3 {[%clk 0:00:47.8]} 34... Qd6 {[%clk
0:00:47.8]} 35. c4 {[%clk 0:00:19.7]} 35... Qf4 {[%clk 0:00:27]} 36. cxd5 {[%clk
0:00:13.7]} 36... Qh6 {[%clk 0:00:27.3]} 37. f4 {[%clk 0:00:01.8]} 37... Qh1+
{[%clk 0:00:25.2]} 38. Kf2 {[%clk 0:00:02.1]} 38... Rh2+ {[%clk 0:00:25.8]} 0-1

[Event "Late-Titled-Tuesday-Blitz-March-19-2024"]
[Site "Chess.com"]
[Date "2024.03.19"]
[Round "6"]
[White "DrKerfuffle"]
[Black "FredddieCroderg"]
[Result "0-1"]
[WhiteElo "2824"]
[BlackElo "2308"]
[TimeControl "180+1"]
[EndTime "15:05:20 PDT"]
[Termination "FredddieCroderg won on time"]

1. e4 {[%clk 0:03:00.9]} 1... c6 {[%clk 0:02:59.7]} 2. d4 {[%clk 0:03:00.2]}
2... d5 {[%clk 0:02:59.2]} 3. exd5 {[%clk 0:03:01.1]} 3... cxd5 {[%clk
0:02:58.9]} 4. c4 {[%clk 0:03:01.7]} 4... Nf6 {[%clk 0:02:57.6]} 5. Nc3 {[%clk
0:03:01.7]} 5... e6 {[%clk 0:02:56.8]} 6. Nf3 {[%clk 0:03:02.2]} 6... Be7 {[%clk
0:02:56.3]} 7. cxd5 {[%clk 0:03:02.3]} 7... Nxd5 {[%clk 0:02:55.7]} 8. Bd3
{[%clk 0:03:03.2]} 8... O-O {[%clk 0:02:54.9]} 9. O-O {[%clk 0:03:03.2]} 9...
Nc6 {[%clk 0:02:54.6]} 10. Re1 {[%clk 0:03:03.3]} 10... Nf6 {[%clk 0:02:51.8]}
11. a3 {[%clk 0:03:01.7]} 11... b6 {[%clk 0:02:50.1]} 12. Bc2 {[%clk 0:03:02]}
12... Ba6 {[%clk 0:02:47.1]} 13. b4 {[%clk 0:03:01.6]} 13... Rc8 {[%clk
0:02:40.5]} 14. b5 {[%clk 0:02:47.6]} 14... Na5 {[%clk 0:02:40.2]} 15. bxa6
{[%clk 0:02:44.9]} 15... Rxc3 {[%clk 0:02:39.1]} 16. Bd2 {[%clk 0:02:45.5]}
16... Rc7 {[%clk 0:02:30.8]} 17. Bb4 {[%clk 0:02:38.8]} 17... Nc4 {[%clk
0:02:23.6]} 18. Bb3 {[%clk 0:02:23.8]} 18... Nd5 {[%clk 0:02:17.2]} 19. Bxe7
{[%clk 0:02:19.3]} 19... Qxe7 {[%clk 0:02:13.4]} 20. Qd3 {[%clk 0:02:08.2]}
20... Rfc8 {[%clk 0:02:10.8]} 21. Qe4 {[%clk 0:02:08.4]} 21... Qf6 {[%clk
0:02:02.7]} 22. h4 {[%clk 0:01:45.8]} 22... g6 {[%clk 0:01:59]} 23. Rac1 {[%clk
0:01:28.1]} 23... Nd6 {[%clk 0:01:36.7]} 24. Rxc7 {[%clk 0:01:24]} 24... Rxc7
{[%clk 0:01:33.6]} 25. Qe5 {[%clk 0:01:12.9]} 25... Qxe5 {[%clk 0:01:31.5]} 26.
Nxe5 {[%clk 0:01:11]} 26... Rc3 {[%clk 0:01:21.3]} 27. Bxd5 {[%clk 0:00:55.6]}
27... exd5 {[%clk 0:01:21.1]} 28. Re3 {[%clk 0:00:54.5]} 28... Rc1+ {[%clk
0:01:12.5]} 29. Kh2 {[%clk 0:00:53.9]} 29... Nc4 {[%clk 0:01:12.9]} 30. Nxc4
{[%clk 0:00:13.1]} 30... Rxc4 {[%clk 0:00:52.7]} 31. Re7 {[%clk 0:00:11.5]}
31... Rxd4 {[%clk 0:00:52.8]} 32. Rxa7 {[%clk 0:00:10.7]} 32... Rxh4+ {[%clk
0:00:52.6]} 33. Kg3 {[%clk 0:00:11.2]} 33... Ra4 {[%clk 0:00:53]} 34. Kf3 {[%clk
0:00:09.1]} 34... Rxa3+ {[%clk 0:00:52.6]} 35. Ke2 {[%clk 0:00:08.9]} 35... Kg7
{[%clk 0:00:50.2]} 36. Kd2 {[%clk 0:00:06.2]} 36... b5 {[%clk 0:00:47.8]} 37.
Kc2 {[%clk 0:00:06.5]} 37... b4 {[%clk 0:00:47.6]} 38. Kb2 {[%clk 0:00:06.4]}
38... h5 {[%clk 0:00:45.9]} 39. Ra8 {[%clk 0:00:06]} 39... h4 {[%clk 0:00:44.4]}
40. a7 {[%clk 0:00:06.4]} 40... g5 {[%clk 0:00:43.3]} 41. Kc2 {[%clk 0:00:05.6]}
41... g4 {[%clk 0:00:40.3]} 42. Kb2 {[%clk 0:00:05.8]} 42... h3 {[%clk
0:00:38.6]} 43. gxh3 {[%clk 0:00:06.7]} 43... gxh3 {[%clk 0:00:37.9]} 0-1

[Event "Late-Titled-Tuesday-Blitz-March-19-2024"]
[Site "Chess.com"]
[Date "2024.03.19"]
[Round "6"]
[White "picturesquecheck"]
[Black "carloseduar100"]
[Result "1-0"]
[WhiteElo "2420"]
[BlackElo "2254"]
[TimeControl "180+1"]
[EndTime "15:05:20 PDT"]
[Termination "picturesquecheck won by checkmate"]

1. e4 {[%clk 0:03:00.9]} 1... e6 {[%clk 0:02:36.5]} 2. d4 {[%clk 0:02:59.6]}
2... d5 {[%clk 0:02:35.4]} 3. Nd2 {[%clk 0:02:57.7]} 3... c5 {[%clk 0:02:34.8]}
4. exd5 {[%clk 0:02:57.4]} 4... Qxd5 {[%clk 0:02:33.4]} 5. Ngf3 {[%clk
0:02:57.7]} 5... Nc6 {[%clk 0:02:32.3]} 6. Bc4 {[%clk 0:02:56.2]} 6... Qd7
{[%clk 0:02:32.2]} 7. dxc5 {[%clk 0:02:56]} 7... Bxc5 {[%clk 0:02:33.1]} 8. O-O
{[%clk 0:02:56.4]} 8... Nf6 {[%clk 0:02:33.3]} 9. Nb3 {[%clk 0:02:56.6]} 9...
Bd6 {[%clk 0:02:33]} 10. Bg5 {[%clk 0:02:54.6]} 10... h6 {[%clk 0:02:32.4]} 11.
Bxf6 {[%clk 0:02:54.2]} 11... gxf6 {[%clk 0:02:33.3]} 12. Re1 {[%clk 0:02:54.6]}
12... Qc7 {[%clk 0:02:28.3]} 13. Bf1 {[%clk 0:02:49.9]} 13... h5 {[%clk
0:02:26.7]} 14. c4 {[%clk 0:02:49.1]} 14... h4 {[%clk 0:02:26.4]} 15. h3 {[%clk
0:02:48.7]} 15... Ne5 {[%clk 0:02:16.8]} 16. c5 {[%clk 0:02:43.2]} 16... Nxf3+
{[%clk 0:02:16.6]} 17. Qxf3 {[%clk 0:02:43]} 17... Be5 {[%clk 0:02:17.3]} 18.
Rad1 {[%clk 0:02:40.4]} 18... Bd7 {[%clk 0:02:12.6]} 19. Nd4 {[%clk 0:01:53.5]}
19... O-O-O {[%clk 0:01:58.8]} 20. c6 {[%clk 0:01:49.8]} 20... Bxd4 {[%clk
0:01:52.1]} 21. cxd7+ {[%clk 0:01:26]} 21... Rxd7 {[%clk 0:01:50.5]} 22. Rc1
{[%clk 0:01:26.5]} 22... Bxb2 {[%clk 0:01:12.2]} 23. Rxc7+ {[%clk 0:01:24.2]}
23... Kxc7 {[%clk 0:01:13.1]} 24. Qb3 {[%clk 0:01:20.7]} 24... Be5 {[%clk
0:01:11.1]} 25. Rb1 {[%clk 0:01:16.5]} 25... b6 {[%clk 0:01:10.9]} 26. Rc1+
{[%clk 0:01:15.5]} 26... Kb8 {[%clk 0:01:10.9]} 27. Ba6 {[%clk 0:01:12.8]} 27...
Rhd8 {[%clk 0:01:09.5]} 28. Qc2 {[%clk 0:01:11.6]} 28... Rc7 {[%clk 0:01:06.1]}
29. Qb1 {[%clk 0:01:08.8]} 29... Rxc1+ {[%clk 0:01:03.6]} 30. Qxc1 {[%clk
0:01:09.7]} 30... Bc7 {[%clk 0:00:55.9]} 31. f4 {[%clk 0:01:07.1]} 31... Rd6
{[%clk 0:00:43.6]} 32. Qb1 {[%clk 0:00:50.9]} 32... f5 {[%clk 0:00:42.7]} 33.
Qb5 {[%clk 0:00:46.4]} 33... Bd8 {[%clk 0:00:31.7]} 34. Qe8 {[%clk 0:00:39.1]}
34... Kc7 {[%clk 0:00:28.6]} 35. Qxf7+ {[%clk 0:00:38.6]} 35... Kc6 {[%clk
0:00:29.2]} 36. Qe8+ {[%clk 0:00:37.3]} 36... Kc7 {[%clk 0:00:29]} 37. Kh2
{[%clk 0:00:34.7]} 37... Kb8 {[%clk 0:00:18.6]} 38. Kg1 {[%clk 0:00:27.6]} 38...
Kc7 {[%clk 0:00:18.7]} 39. Kf2 {[%clk 0:00:28]} 39... Kb8 {[%clk 0:00:18.1]} 40.
Ke2 {[%clk 0:00:28]} 40... Kc7 {[%clk 0:00:18.3]} 41. a4 {[%clk 0:00:28.3]}
41... Kb8 {[%clk 0:00:18.5]} 42. Bc4 {[%clk 0:00:27.3]} 42... Kc7 {[%clk
0:00:18.8]} 43. Bxe6 {[%clk 0:00:27]} 43... Kb7 {[%clk 0:00:17.7]} 44. Bxf5
{[%clk 0:00:26.4]} 44... Bc7 {[%clk 0:00:17.5]} 45. Be4+ {[%clk 0:00:26.2]}
45... Ka6 {[%clk 0:00:17.2]} 46. Qb5# {[%clk 0:00:25.4]} 1-0

[Event "Late-Titled-Tuesday-Blitz-March-19-2024"]
[Site "Chess.com"]
[Date "2024.03.19"]
[Round "6"]
[White "subham777"]
[Black "bescmelasti"]
[Result "0-1"]
[WhiteElo "2535"]
[BlackElo "2682"]
[TimeControl "180+1"]
[EndTime "15:05:22 PDT"]
[Termination "bescmelasti won by resignation"]

1. e4 {[%clk 0:03:00.9]} 1... c5 {[%clk 0:02:49.4]} 2. Nf3 {[%clk 0:02:59.4]}
2... e6 {[%clk 0:02:39.8]} 3. g3 {[%clk 0:02:58.3]} 3... Nc6 {[%clk 0:02:39.6]}
4. Bg2 {[%clk 0:02:58.2]} 4... Nf6 {[%clk 0:02:39.7]} 5. d3 {[%clk 0:02:57.2]}
5... d5 {[%clk 0:02:39.2]} 6. exd5 {[%clk 0:02:55.7]} 6... exd5 {[%clk
0:02:38.2]} 7. O-O {[%clk 0:02:56.6]} 7... Be7 {[%clk 0:02:38.4]} 8. c3 {[%clk
0:02:56.8]} 8... O-O {[%clk 0:02:38.6]} 9. d4 {[%clk 0:02:56.3]} 9... Bg4 {[%clk
0:02:35.8]} 10. dxc5 {[%clk 0:02:56.1]} 10... Bxc5 {[%clk 0:02:35.4]} 11. Nbd2
{[%clk 0:02:55.3]} 11... Bb6 {[%clk 0:02:33.7]} 12. Nb3 {[%clk 0:02:54.8]} 12...
Re8 {[%clk 0:02:26.6]} 13. Bf4 {[%clk 0:02:45.9]} 13... Qd7 {[%clk 0:02:20.9]}
14. Qd3 {[%clk 0:02:36.6]} 14... Rad8 {[%clk 0:02:18.8]} 15. Rfe1 {[%clk
0:02:30.8]} 15... Ne4 {[%clk 0:02:18]} 16. Nfd4 {[%clk 0:02:28.4]} 16... Bh3
{[%clk 0:02:10.7]} 17. Bxe4 {[%clk 0:02:21.1]} 17... dxe4 {[%clk 0:02:11.6]} 18.
Rxe4 {[%clk 0:02:21.2]} 18... Rxe4 {[%clk 0:02:01.6]} 19. Qxe4 {[%clk
0:02:22.1]} 19... Re8 {[%clk 0:01:58.5]} 20. Qf3 {[%clk 0:02:17.9]} 20... Nxd4
{[%clk 0:01:40.9]} 21. cxd4 {[%clk 0:02:12.9]} 21... Bxd4 {[%clk 0:01:35.3]} 22.
Rd1 {[%clk 0:02:02.4]} 22... Bg4 {[%clk 0:01:34.7]} 23. Qd3 {[%clk 0:00:46]}
23... Bxd1 {[%clk 0:01:29.8]} 24. Qxd4 {[%clk 0:00:28.4]} 24... Qxd4 {[%clk
0:00:56.2]} 25. Nxd4 {[%clk 0:00:29.3]} 25... f6 {[%clk 0:00:54.6]} 26. Be3
{[%clk 0:00:26.4]} 26... a6 {[%clk 0:00:52.6]} 27. Kf1 {[%clk 0:00:24.5]} 27...
Ba4 {[%clk 0:00:51.6]} 28. Ke2 {[%clk 0:00:23.5]} 28... Bd7 {[%clk 0:00:52.1]}
29. Kd3 {[%clk 0:00:23.2]} 29... Kf7 {[%clk 0:00:52.5]} 30. Kc4 {[%clk
0:00:22.7]} 30... Be6+ {[%clk 0:00:50.8]} 31. Kc5 {[%clk 0:00:22.1]} 31... Bxa2
{[%clk 0:00:50.5]} 32. Kb6 {[%clk 0:00:20.8]} 32... Bd5 {[%clk 0:00:49.7]} 33.
b4 {[%clk 0:00:19.3]} 33... h5 {[%clk 0:00:48.5]} 34. Nf5 {[%clk 0:00:17.3]}
34... Re6+ {[%clk 0:00:47.1]} 35. Kc5 {[%clk 0:00:16.2]} 35... Bc6 {[%clk
0:00:45.7]} 36. Nd4 {[%clk 0:00:16.2]} 36... Re5+ {[%clk 0:00:45.4]} 37. Kb6
{[%clk 0:00:14.3]} 37... Bg2 {[%clk 0:00:43.3]} 38. Bf4 {[%clk 0:00:08.7]} 38...
Rd5 {[%clk 0:00:43]} 39. Be3 {[%clk 0:00:08.8]} 39... g5 {[%clk 0:00:42.5]} 40.
f3 {[%clk 0:00:07.2]} 40... g4 {[%clk 0:00:28.7]} 41. fxg4 {[%clk 0:00:05.7]}
41... hxg4 {[%clk 0:00:29.6]} 42. Nb3 {[%clk 0:00:04.3]} 42... Rd3 {[%clk
0:00:29.3]} 43. Nc5 {[%clk 0:00:04.1]} 43... Rxe3 {[%clk 0:00:29.3]} 0-1

[Event "Late-Titled-Tuesday-Blitz-March-19-2024"]
[Site "Chess.com"]
[Date "2024.03.19"]
[Round "6"]
[White "Goryachkina"]
[Black "Alex_Sahakyan2006"]
[Result "0-1"]
[WhiteElo "2657"]
[BlackElo "2821"]
[TimeControl "180+1"]
[EndTime "15:05:23 PDT"]
[Termination "Alex_Sahakyan2006 won by resignation"]

1. e4 {[%clk 0:03:00]} 1... c6 {[%clk 0:02:56.7]} 2. d4 {[%clk 0:02:56.7]} 2...
d5 {[%clk 0:02:57.6]} 3. e5 {[%clk 0:02:56.8]} 3... Bf5 {[%clk 0:02:57.2]} 4.
Bd3 {[%clk 0:02:56.6]} 4... Bxd3 {[%clk 0:02:53.5]} 5. Qxd3 {[%clk 0:02:57.5]}
5... e6 {[%clk 0:02:53.6]} 6. Ne2 {[%clk 0:02:57]} 6... c5 {[%clk 0:02:49.3]} 7.
c3 {[%clk 0:02:54.3]} 7... Nc6 {[%clk 0:02:47.3]} 8. O-O {[%clk 0:02:53.1]} 8...
Nge7 {[%clk 0:02:27.6]} 9. Nd2 {[%clk 0:02:50]} 9... Nf5 {[%clk 0:02:21]} 10.
Nf3 {[%clk 0:02:48.8]} 10... Be7 {[%clk 0:02:12.1]} 11. g4 {[%clk 0:02:40.3]}
11... Nh4 {[%clk 0:02:11.5]} 12. Nxh4 {[%clk 0:02:40.2]} 12... Bxh4 {[%clk
0:02:11.3]} 13. f4 {[%clk 0:02:40.3]} 13... Be7 {[%clk 0:01:51.8]} 14. Be3
{[%clk 0:02:25.1]} 14... Qb6 {[%clk 0:01:50.4]} 15. b3 {[%clk 0:01:56.5]} 15...
h5 {[%clk 0:01:39.8]} 16. g5 {[%clk 0:01:38.3]} 16... g6 {[%clk 0:01:39.1]} 17.
Kh1 {[%clk 0:01:36]} 17... O-O {[%clk 0:01:34.8]} 18. Ng3 {[%clk 0:01:30.8]}
18... cxd4 {[%clk 0:01:32.4]} 19. cxd4 {[%clk 0:01:30]} 19... Nb4 {[%clk
0:01:31.3]} 20. Qd1 {[%clk 0:01:29.6]} 20... Kg7 {[%clk 0:01:18.2]} 21. f5
{[%clk 0:01:17.5]} 21... exf5 {[%clk 0:01:16.6]} 22. Rxf5 {[%clk 0:01:17]} 22...
Qe6 {[%clk 0:00:53.7]} 23. Rf2 {[%clk 0:00:36]} 23... Rac8 {[%clk 0:00:50.2]}
24. Qf3 {[%clk 0:00:30.9]} 24... Nc2 {[%clk 0:00:44.2]} 25. Raf1 {[%clk
0:00:29]} 25... Rc3 {[%clk 0:00:44.5]} 26. Rxc2 {[%clk 0:00:12]} 26... Rxc2
{[%clk 0:00:45.4]} 27. Ne2 {[%clk 0:00:12.2]} 27... Qg4 {[%clk 0:00:42]} 28. Nf4
{[%clk 0:00:09.8]} 28... Qxf3+ {[%clk 0:00:41.1]} 29. Rxf3 {[%clk 0:00:09.8]}
29... Bxg5 {[%clk 0:00:39.7]} 30. Nxd5 {[%clk 0:00:08]} 30... Bxe3 {[%clk
0:00:38.9]} 31. Nxe3 {[%clk 0:00:08.2]} 31... Rxa2 {[%clk 0:00:35.2]} 32. d5
{[%clk 0:00:08.2]} 32... Re8 {[%clk 0:00:30]} 33. Nc4 {[%clk 0:00:05.2]} 33...
b5 {[%clk 0:00:30]} 34. Nd6 {[%clk 0:00:04.9]} 34... Rxe5 {[%clk 0:00:29.7]} 35.
Rxf7+ {[%clk 0:00:04.9]} 35... Kh6 {[%clk 0:00:29.2]} 36. Rf1 {[%clk 0:00:04.8]}
36... Rxd5 {[%clk 0:00:29.2]} 37. Nf7+ {[%clk 0:00:04.3]} 37... Kg7 {[%clk
0:00:29.3]} 38. h4 {[%clk 0:00:04.5]} 38... Rf5 {[%clk 0:00:28]} 0-1